Cogmind - Beta 15 @@@ ROGUE MODE // 2025.08.17 @ 08:50:39 Player: KeKe Result: Destroyed by S-27 Virus with Autogun Performance ------------- Evolutions (6) 3000 Regions Visited (10) 2000 Robots Destroyed (152) 760 Value Destroyed (4882) 4882 Prototype IDs (26) 520 Alien Tech Used (0) 0 Bonus (457) 457 TOTAL SCORE: 11619 Bonus ------- High Alert Combat Kills 157 Aligned with FarCom 300 Cogmind --------- Core Integrity 0/1150 Matter 1/300 Energy 98/100 System Corruption 4% Temperature Cool (0) Movement Core (50) Location -4/Factory Parts ------- > --- POWER (1) -------- (None) > --- PROPULSION (4) --- (None) > --- UTILITY (10) ----- (None) > --- WEAPON (4) ------- (None) > --- INVENTORY (5) ---- (None) Peak State ------------ > --- POWER ------------ Neutrino Core > --- PROPULSION ------- Wheel Compact Wheel Armored Huge Wheel > --- UTILITY ---------- Advanced Signal Interpreter Hardened Medium Armor Plating Improved Medium Armor Plating Improved Heavy Armor Plating Layered Medium Armor Plating Medium Reactive Plating Reflective Plating System Shield Advanced System Shield > --- WEAPON ----------- AWS/Autocannon Powered Hammer > --- INVENTORY -------- Hardened Light Armor Plating Hardened Light Armor Plating Hardcell Cannon Hardcell Cannon Heavy Missile Launcher [Rating: 95] Favorites ----------- Power Light Ion Engine Engine Light Ion Engine Power Core Neutrino Core Propulsion Wheel Treads Light Treads Leg Aluminum Leg Wheel Wheel Flight Unit Field Propulsion Drive Utility Hardened Medium Armor Plating Device Improved Force Field Storage Small Storage Unit Processor Improved Targeting Computer Hackware System Shield Protection Hardened Medium Armor Plating Weapon AWS/Autocannon Energy Gun Medium Laser Ballistic Gun Shotgun Ballistic Cannon AWS/Autocannon Launcher Neutron Missile Launcher Impact Weapon Great Maul Build | -11 -10 -9 -9 -9 -8 -8 -7 -6 -5 -4 ------- Run | Yrd Mat Mat Min Exi Min Mat Fac Fac Fac Fac Slots Evolved 12 | . . 2 . . . 2 2 2 2 2 Power . | . . . . . . . . . . . Propulsion 2 | . . 2 . . . . . . . . Utility 8 | . . . . . . 1 1 2 2 2 Weapon 2 | . . . . . . 1 1 . . . Parts Attached 73 | . 3 14 3 2 5 6 2 6 12 20 Power 5 | . . 1 1 . 1 1 . . 1 . Engine 4 | . . 1 1 . 1 1 . . . . Core 1 | . . . . . . . . . 1 . Reactor . | . . . . . . . . . . . Propulsion 30 | . . 10 1 1 4 1 . 2 1 10 Treads 6 | . . 6 . . . . . . . . Leg 6 | . . 4 1 1 . . . . . . Wheel 10 | . . . . . 4 1 . 2 1 2 Hover . | . . . . . . . . . . . Flight 8 | . . . . . . . . . . 8 Utility 24 | . 1 1 . 1 . 3 1 4 9 4 Device 2 | . . . . . . . . . 1 1 Storage . | . . . . . . . . . . . Processor 4 | . . . . . . . 1 2 1 . Hackware 3 | . . . . . . . . . 2 1 Protection 15 | . 1 1 . 1 . 3 . 2 5 2 Artifact . | . . . . . . . . . . . Weapon 14 | . 2 2 1 . . 1 1 . 1 6 Energy Gun . | . . . . . . . . . . . Energy Cannon . | . . . . . . . . . . . Ballistic Gun 7 | . 2 2 1 . . . . . . 2 Ballistic Cannon 3 | . . . . . . 1 . . . 2 Launcher 2 | . . . . . . . . . . 2 Special Weapon . | . . . . . . . . . . . Impact Weapon 2 | . . . . . . . 1 . 1 . Slashing Weapon . | . . . . . . . . . . . Piercing Weapon . | . . . . . . . . . . . Special Melee Weapon . | . . . . . . . . . . . Unidentified Prototypes 3 | . . . . . . . . . 1 2 Parts Lost 38 | . . 10 . . . 2 . 1 2 23 Power 4 | . . 2 . . . 1 . . . 1 Propulsion 16 | . . 4 . . . 1 . . 1 10 Utility 10 | . . 1 . . . . . 1 1 7 Weapon 8 | . . 3 . . . . . . . 5 Highest Loss Streak 14 | . . 6 . . . 2 . 1 1 14 To Critical Strikes 1 | . . . . . . . . . . 1 Average Backups 4 | . 7 6 7 6 3 4 2 3 4 3 Power . | . 1 1 1 2 1 . . . . . Propulsion 1 | . 2 . 3 2 1 1 1 . . . Utility 1 | . 2 2 2 . . . . 1 2 . Weapon 1 | . 1 2 1 . 1 1 1 1 1 2 Tool/Special . | . . . . . . . . . . . Unused Backups 8 | . . . . 1 4 2 . . 1 . Power 3 | . . . . . 2 1 . . . . Propulsion 2 | . . . . . 2 . . . . . Utility 1 | . . . . 1 . . . . . . Weapon 2 | . . . . . . 1 . . 1 . Tool/Special . | . . . . . . . . . . . Average Slot Usage (%) 84 | . 95 94 99 100 98 80 83 78 72 66 Engine 7 | . 14 10 10 11 11 8 7 6 2 . Treads 6 | . . 26 22 15 6 . . . . . Leg 7 | . 28 15 22 28 18 . . . . . Wheel 15 | . . . . . 19 36 30 22 13 12 Storage 4 | . 14 11 11 11 11 1 . . . . Processor 4 | . . . . . . . 6 12 9 4 Hackware 1 | . . . . . . . . . 4 8 Protection 19 | . 11 11 11 11 11 24 23 22 23 26 Ballistic Gun 8 | . 25 19 22 22 22 1 . . . . Ballistic Cannon 3 | . . . . . . 8 7 6 5 4 Impact Weapon 2 | . . . . . . . 7 6 5 3 Peak Build Rating 95 | . 11 13 12 15 15 43 48 68 88 95 Average Rating 43 | . 10 11 11 13 13 41 47 58 80 75 On Entrance 29 | 6 6 11 9 12 15 14 43 48 68 88 Naked Turns 48 | . . . . . . . . . . 48 Heaviest Build 139 | 11 19 21 17 17 17 84 89 96 131 139 Greatest Support 80 | 20 20 80 40 30 46 46 46 48 54 54 Greatest Overweight (x) 3 | . . 2 1 . . 1 1 2 3 3 Average Overweight (x) . | . . . . . . . 1 1 2 1 Largest Inventory Capacity 8 | . 8 8 8 8 8 8 5 5 5 5 Average Capacity 6 | . 8 8 8 8 8 5 5 5 5 5 Most Carried 8 | . 8 8 8 8 8 8 3 5 5 5 Average Carried 5 | . 7 6 7 7 5 4 2 4 4 3 Final Capacity 8 | 8 8 8 8 8 8 5 5 5 5 5 Final Carried 8 | 6 8 6 8 8 6 4 3 5 4 . Class Distribution -------------------- 30% | Scavenger-Tank 26% | Scavenger-Mutant 18% | Tank 13% | Mutant 8% | Hacker-Tank Dominant Class ---------------- Mutant | -10/Materials Mutant | -9/Materials Scavenger-Mutant | -9/Mines Scavenger-Mutant | -9/Exiles Scavenger-Mutant | -8/Mines Scavenger-Tank | -8/Materials Scavenger-Tank | -7/Factory Scavenger-Tank | -6/Factory Tank | -5/Factory Hacker-Tank | -4/Factory Resources | -11 -10 -9 -9 -9 -8 -8 -7 -6 -5 -4 ----------- Run | Yrd Mat Mat Min Exi Min Mat Fac Fac Fac Fac Matter Collected 1506 | 200 9 645 155 . 125 65 28 55 144 80 Remotely . | . . . . . . . . . . . Salvage Created 4374 | . 23 855 292 . 174 587 180 142 1191 930 Parts 252 | . 4 57 24 . 18 36 10 13 45 45 Haulers Intercepted 2 | . . . . . . . . . 1 1 Recyclers Shooed 1 | . . 1 . . . . . . . . Parts Field Recycled . | . . . . . . . . . . . Retrieved Matter . | . . . . . . . . . . . Parts Self-Destructed . | . . . . . . . . . . . Prevented . | . . . . . . . . . . . Kills | -11 -10 -9 -9 -9 -8 -8 -7 -6 -5 -4 ------- Run | Yrd Mat Mat Min Exi Min Mat Fac Fac Fac Fac Combat Hostiles Destroyed 108 | . 2 24 13 . 1 22 5 4 19 18 Guns 40 | . 2 24 13 . 1 . . . . . Cannons 65 | . . . . . . 22 4 4 19 16 AOE 2 | . . . . . . . . . . 2 Classes Destroyed 16 | . 1 6 . . 3 2 2 . 1 1 Worker 18 | . . . . . 3 . 2 2 7 4 Builder 8 | . . . . . 1 . . 1 1 5 Tunneler 2 | . . . . . 1 . . . . 1 Hauler 2 | . . . . . . . . . 1 1 Recycler 5 | . . 1 . . 1 . . . 2 1 Operator 1 | . . . . . . . 1 . . . Watcher 8 | . . 1 . . . . . . 4 3 Swarmer 40 | . 2 6 8 . . 4 3 3 4 10 Grunt 25 | . . 8 4 . 1 4 . . 8 . Brawler 1 | . . 1 . . . . . . . . Duelist 5 | . . 3 1 . . . . . 1 . Sentry 14 | . . 6 . . . 4 . . 3 1 Specialist 8 | . . . . . . 8 . . . . Hunter 6 | . . . . . . 2 . . . 4 Programmer 8 | . . . . . . . 2 1 3 2 Behemoth 1 | . . . . . . . . . . 1 Best Kill Streak 15 | . 2 6 4 . 3 8 3 3 11 15 Combat Bots Only 11 | . 2 6 4 . 1 8 3 3 11 6 Max Kills in Single Turn 2 | . 1 2 2 . 1 1 1 1 1 2 Gunslinging 1 | . . 1 1 . . . . . . . Exploded 2 | . . . . . . . . . . 2 Melee . | . . . . . . . . . . . Uniques/NPCs Destroyed . | . . . . . . . . . . . Combat | -11 -10 -9 -9 -9 -8 -8 -7 -6 -5 -4 -------- Run | Yrd Mat Mat Min Exi Min Mat Fac Fac Fac Fac Hostile Shots Fired 800 | . 2 157 53 . 7 81 8 11 67 414 Missed 235 | . 1 35 18 . 4 23 1 3 19 131 Hits 565 | . 1 122 35 . 3 58 7 8 48 283 Melee 15 | . . 15 . . . . . . . . Projectile 550 | . 1 107 35 . 3 58 7 8 48 283 Critical Strikes 21 | . 1 5 . . . 2 . . 1 12 Actively Blocked 1 | . . . . . . 1 . . . . Damage Taken 8553 | . 6 1596 329 . 49 886 115 332 828 4412 Core 1619 | . 6 156 56 . 18 170 37 22 . 1154 Absorbed by Shields 69 | . . . . . . . . . . 69 Redirected to Shielding 140 | . . . . . . 38 . . 102 . Ignored by Resistances 553 | . . . . . . . . . 132 421 Core Remaining (%) 85 | 100 97 . . . 42 69 94 97 100 . Volleys Fired 113 | . 4 62 25 . 11 . . . . 11 Largest 4 | . 2 2 2 . 2 . . . . 4 Hottest 179 | . 46 46 43 . 43 . . . . 179 Shots Fired 432 | . 7 120 50 . 22 62 10 7 62 92 Gun 209 | . 7 120 50 . 22 . . . . 10 Cannon 220 | . . . . . . 62 10 7 62 79 Launcher 3 | . . . . . . . . . . 3 Special . | . . . . . . . . . . . Kinetic 429 | . 7 120 50 . 22 62 10 7 62 89 Thermal . | . . . . . . . . . . . Explosive 3 | . . . . . . . . . . 3 Electromagnetic . | . . . . . . . . . . . Robot Hit Streak 20 | . 2 12 11 . 7 20 7 2 16 14 Robot Miss Streak 6 | . 2 6 6 . 3 2 2 2 3 4 Penetration Max 1 | . . . . . . . . . . 1 Secondary Targets 6 | . . 4 2 . . . . . . . Max Gunslinging Chain 1 | . . 1 1 . . . . . . . Autonomous 205 | . . . . . . 62 10 7 62 64 Shots Hit Robots 350 | . 3 102 32 . 15 49 12 7 59 71 Core Hits 154 | . 2 50 21 . 11 16 3 4 21 26 Critical Kills . | . . . . . . . . . . . Critical Parts Destroyed 8 | . 1 . 2 . . . . 2 2 1 Critical Strikes 22 | . 1 . 2 . . 5 1 2 7 4 Destroy 3 | . 1 . 2 . . . . . . . Blast 14 | . . . . . . 5 1 . 5 3 Smash 5 | . . . . . . . . 2 2 1 Melee Attacks 44 | . . . . . . . 5 12 14 13 Impact 44 | . . . . . . . 5 12 14 13 Slashing . | . . . . . . . . . . . Piercing . | . . . . . . . . . . . Sneak Attacks 21 | . . . . . . . 4 3 8 6 Combat Hostiles . | . . . . . . . . . . . Follow-up Attacks . | . . . . . . . . . . . Damage Inflicted 18269 | . 30 1507 362 . 164 3955 1072 623 4979 5577 Guns 2271 | . 30 1503 362 . 164 . . . . 212 Cannons 13348 | . . . . . . 3955 730 337 4092 4234 Explosions 463 | . . . . . . . . . 58 405 Melee 2170 | . . . . . . . 329 286 829 726 Ramming 17 | . . 4 . . . . 13 . . . Kinetic 15619 | . 30 1503 362 . 164 3955 730 337 4092 4446 Thermal . | . . . . . . . . . . . Explosive 463 | . . . . . . . . . 58 405 Electromagnetic . | . . . . . . . . . . . Impact 2170 | . . . . . . . 329 286 829 726 Slashing . | . . . . . . . . . . . Piercing . | . . . . . . . . . . . Highest Corruption 4 | . . . . . . . . 1 3 4 Average Corruption 1 | . . . . . . . . 1 1 3 Corruption Purged . | . . . . . . . . . . . Corruption Blocked . | . . . . . . . . . . . Effects 9 | . . . . . . . . . 5 4 Message Errors 5 | . . . . . . . . . 3 2 Matter Fused 4 | . . . . . . . . . 2 2 Overload Shots . | . . . . . . . . . . . Overflow Damage 3183 | . . . . . . 528 330 211 1127 987 Projectiles 1994 | . . . . . . 528 146 54 629 637 Explosions 3 | . . . . . . . . . 3 . Melee 1186 | . . . . . . . 184 157 495 350 Knockbacks 59 | . . . . . . 10 7 . 18 24 Impact 8 | . . . . . . . 3 . 3 2 Kinetic 44 | . . . . . . 10 3 . 13 18 Secondary 7 | . . . . . . . 1 . 2 4 Self-Inflicted Damage 101 | . . . . . . . 6 . 48 47 Shots 2 | . . . . . . . . . 1 1 Rammed 2 | . . 1 . . . . 1 . . . Targets Rammed 2 | . . 1 . . . . 1 . . . Kicked . | . . . . . . . . . . . Crushed . | . . . . . . . . . . . Highest Temperature 634 | . . 24 33 . 21 6 . . 291 634 Average Temperature 126 | . . 8 11 . 6 6 . . 103 382 Received Heat Transfer 1193 | . . 393 78 . 27 216 . . 213 266 Effects 12 | . . . . . . . . . . 12 Shutdowns 2 | . . . . . . . . . . 2 Interference 4 | . . . . . . . . . . 4 Matter Decay 1 | . . . . . . . . . . 1 Short Circuit 1 | . . . . . . . . . . 1 Damage (minor) 3 | . . . . . . . . . . 3 Damage (core) 1 | . . . . . . . . . . 1 Siege Activations . | . . . . . . . . . . . Martial Activations . | . . . . . . . . . . . Shielding Activations . | . . . . . . . . . . . Robots Disrupted . | . . . . . . . . . . . Combat Hostiles . | . . . . . . . . . . . Robots Corrupted 12 | . . . . . . . 3 1 5 3 Combat Hostiles 1 | . . . . . . . 1 . . . Parts Fried 18 | . . . . . . . 1 2 7 8 Impact Corruptions 39 | . . . . . . . 9 4 14 12 Robots Melted . | . . . . . . . . . . . Combat Hostiles . | . . . . . . . . . . . Parts Melted . | . . . . . . . . . . . Heat Transferred . | . . . . . . . . . . . Parts Sabotaged . | . . . . . . . . . . . Parts Stolen . | . . . . . . . . . . . Parts Stripped . | . . . . . . . . . . . Power Chain Reactions . | . . . . . . . . . . . Alert | -11 -10 -9 -9 -9 -8 -8 -7 -6 -5 -4 ------- Run | Yrd Mat Mat Min Exi Min Mat Fac Fac Fac Fac Maximum Alert Level 2 | . . . . . . 1 . . 2 2 Low Security (%) 84 | . 100 100 100 . 100 97 100 100 87 . Level 1 8 | . . . . . . 2 . . 8 54 Level 2 6 | . . . . . . . . . 3 45 Level 3 . | . . . . . . . . . . . Level 4 . | . . . . . . . . . . . Level 5 . | . . . . . . . . . . . High Security . | . . . . . . . . . . . Max Security . | . . . . . . . . . . . Peak Influence 630 | . 45 182 196 . 20 256 113 73 532 630 Initial 260 | . . 8 46 . . . 113 14 15 260 Average 108 | . 18 88 122 . 1 62 30 9 131 378 Influence Increases 3830 | . 70 693 310 . 50 564 191 132 902 918 Destroy 0b10 Robot/C 2160 | . 40 480 260 . 20 440 100 80 380 360 Destroy 0b10 Robot/NC 220 | . . 10 . . 30 . 15 15 75 75 Destroy Leader 510 | . . 142 40 . . 110 30 20 90 78 Allied During Kill 10 | . . . 10 . . . . . . . Successful Hack 56 | . . 15 . . . . 8 5 28 . Disable Machine 240 | . . . . . . . . . 120 120 Destroy Structure 259 | . . 1 . . . 14 8 12 74 150 Lose Combat Pursuer 375 | . 30 45 . . . . 30 . 135 135 Influence Decreases 3208 | . 50 592 305 126 50 314 411 130 402 828 Entered New Map 655 | . . 12 75 126 . . 137 16 17 272 Time Decay 2022 | . 50 330 230 . 50 294 263 104 375 326 Lost Part 370 | . . 100 . . . 20 . 10 10 230 Lost Ally 11 | . . . . . . . 11 . . . Purge Threat 150 | . . 150 . . . . . . . . Squads Dispatched 18 | . . 2 . . . 5 1 1 4 5 Investigation 1 | . . . . . . . . . . 1 Extermination 6 | . . . . . . . 1 1 2 2 Reinforcement 10 | . . 2 . . . 5 . . 1 2 Assault . | . . . . . . . . . . . Garrison 1 | . . . . . . . . . 1 . Intercept . | . . . . . . . . . . . Searches Triggered . | . . . . . . . . . . . Construction Impeded . | . . . . . . . . . . . Haulers Reinforced 2 | . . . . . . . . . 1 1 Active Scanning Responses . | . . . . . . . . . . . Cargo Convoy Interrupts . | . . . . . . . . . . . Stealth | -11 -10 -9 -9 -9 -8 -8 -7 -6 -5 -4 --------- Run | Yrd Mat Mat Min Exi Min Mat Fac Fac Fac Fac Distress Signals 10 | . 1 3 1 . . . . . . 5 Communications Jammed . | . . . . . . . . . . . Distress Signals . | . . . . . . . . . . . Times Spotted 168 | . 4 36 17 . 3 24 7 4 29 44 Peak Tracking Total 17 | . 3 9 13 . 3 4 3 2 10 17 Tactical Retreats 12 | . 2 2 1 . . . 1 . 3 3 Traps | -11 -10 -9 -9 -9 -8 -8 -7 -6 -5 -4 ------- Run | Yrd Mat Mat Min Exi Min Mat Fac Fac Fac Fac Traps Triggered 2 | . . . . . . . . 2 . . Indirectly . | . . . . . . . . . . . Trap Hack Attempts . | . . . . . . . . . . . Triggered . | . . . . . . . . . . . Disarmed . | . . . . . . . . . . . Reprogrammed . | . . . . . . . . . . . Reused . | . . . . . . . . . . . Traps Extracted . | . . . . . . . . . . . Installed . | . . . . . . . . . . . Triggered . | . . . . . . . . . . . Machines | -11 -10 -9 -9 -9 -8 -8 -7 -6 -5 -4 ---------- Run | Yrd Mat Mat Min Exi Min Mat Fac Fac Fac Fac Machines Disabled 16 | . . . . . . . . . 8 8 Max in Single Turn 4 | . . . . . . . . . 2 4 Machines Repaired . | . . . . . . . . . . . Machines Dismantled . | . . . . . . . . . . . Machines Sabotaged . | . . . . . . . . . . . Overloaded Fab Kills . | . . . . . . . . . . . Hacking | -11 -10 -9 -9 -9 -8 -8 -7 -6 -5 -4 --------- Run | Yrd Mat Mat Min Exi Min Mat Fac Fac Fac Fac Machines Accessed 22 | . 1 4 . 3 . 3 4 1 3 3 Terminals 18 | . 1 4 . . . 3 4 1 3 2 Fabricators . | . . . . . . . . . . . Repair Stations . | . . . . . . . . . . . Recycling Units . | . . . . . . . . . . . Scanalyzers . | . . . . . . . . . . . Garrison Access 1 | . . . . . . . . . . 1 Total Hacks 54 | . 1 13 . 3 . 8 8 1 12 8 Successful 22 | . . 6 . 3 . 2 5 1 4 1 Failed 32 | . 1 7 . . . 6 3 . 8 7 Catastrophic 7 | . 1 . . . . . 1 . 2 3 Database Lockouts . | . . . . . . . . . . . Manual 43 | . 1 13 . 1 . 8 7 1 10 2 Terminals 49 | . 1 13 . . . 8 8 1 12 6 Fabricators . | . . . . . . . . . . . Repair Stations . | . . . . . . . . . . . Recycling Units . | . . . . . . . . . . . Scanalyzers . | . . . . . . . . . . . Garrison Access 2 | . . . . . . . . . . 2 Terminal Hacks 9 | . . 3 . 3 . . 2 . 1 . Record 2 | . . . . 2 . . . . . . Robot Analysis 1 | . . . . . . . . . 1 . Branch Access Points 1 | . . 1 . . . . . . . . Terminal Index 2 | . . 1 . . . . 1 . . . Alert Level 1 | . . . . . . . 1 . . . Unreport Threat 1 | . . 1 . . . . . . . . Proto ID Catalog 1 | . . . . 1 . . . . . . Fabricator Hacks . | . . . . . . . . . . . Repair Station Hacks . | . . . . . . . . . . . Recycling Unit Hacks . | . . . . . . . . . . . Scanalyzer . | . . . . . . . . . . . Garrison Access Hacks . | . . . . . . . . . . . Unauthorized Hacks 13 | . . 3 . . . 2 3 1 3 1 Terminals 13 | . . 3 . . . 2 3 1 3 1 Botnet 13 | . . 3 . . . 2 3 1 3 1 Fabricators . | . . . . . . . . . . . Repair Stations . | . . . . . . . . . . . Recycling Units . | . . . . . . . . . . . Scanalyzers . | . . . . . . . . . . . Garrison Access . | . . . . . . . . . . . Data Cores Recovered 1 | . . . . . . . 1 . . . Used . | . . . . . . . . . . . Hacking Detections 17 | . 1 3 . . . 3 4 1 2 3 Full Trace Events 1 | . . . . . . . . . . 1 Feedback Events . | . . . . . . . . . . . Feedback Blocked . | . . . . . . . . . . . Robot Schematics Acquired . | . . . . . . . . . . . Robots Built . | . . . . . . . . . . . Authchips . | . . . . . . . . . . . Time . | . . . . . . . . . . . Total Robot Build Rating . | . . . . . . . . . . . Part Schematics Acquired . | . . . . . . . . . . . Parts Built . | . . . . . . . . . . . Authchips . | . . . . . . . . . . . Time . | . . . . . . . . . . . Total Part Build Rating . | . . . . . . . . . . . Parts Repaired . | . . . . . . . . . . . Time . | . . . . . . . . . . . Parts Recycled . | . . . . . . . . . . . Recycled Matter . | . . . . . . . . . . . Retrieved Matter . | . . . . . . . . . . . Retrieved Components . | . . . . . . . . . . . Parts Scanalyzed . | . . . . . . . . . . . Part Schematics Acquired . | . . . . . . . . . . . Parts Damaged . | . . . . . . . . . . . Bothacking | -11 -10 -9 -9 -9 -8 -8 -7 -6 -5 -4 ------------ Run | Yrd Mat Mat Min Exi Min Mat Fac Fac Fac Fac Used RIF Installer . | . . . . . . . . . . . Robots Hacked . | . . . . . . . . . . . Non-combat . | . . . . . . . . . . . Combat . | . . . . . . . . . . . Robot Hacks Applied . | . . . . . . . . . . . Relay Couplers Released 3 | . . . . . . . 3 . . . Programmers 3 | . . . . . . . 3 . . . Fabnet Peak Effective % . | . . . . . . . . . . . Robots Rewired 1 | . . . . . . . 1 . . . Allies Hacked . | . . . . . . . . . . . Hacks Repelled . | . . . . . . . . . . . Allies | -11 -10 -9 -9 -9 -8 -8 -7 -6 -5 -4 -------- Run | Yrd Mat Mat Min Exi Min Mat Fac Fac Fac Fac Total Allies 3 | . . . 2 . . . 1 . . . Largest Group 2 | . . . 2 2 . . 1 . . . Highest-Rated Group 49 | . . . 49 49 . . 25 . . . Highest-Rated Ally 31 | . . . 31 31 . . 25 . . . Total Orders . | . . . . . . . . . . . Ally Attacks 5 | . . . 2 . . . 3 . . . Total Damage 86 | . . . 20 . . . 66 . . . Kills 1 | . . . 1 . . . . . . . Allies Corrupted . | . . . . . . . . . . . Allies Melted . | . . . . . . . . . . . Intel | -11 -10 -9 -9 -9 -8 -8 -7 -6 -5 -4 ------- Run | Yrd Mat Mat Min Exi Min Mat Fac Fac Fac Fac Active Infowar (turns) . | . . . . . . . . . . . Robot Analysis Total 1 | . . . . . . . . . 1 . Derelict Logs Recovered 1 | . . . 1 . . . . . . . Drone Launches . | . . . . . . . . . . . Drone Recoveries . | . . . . . . . . . . . Exploration | -11 -10 -9 -9 -9 -8 -8 -7 -6 -5 -4 ------------- Run | Yrd Mat Mat Min Exi Min Mat Fac Fac Fac Fac Turns Passed 6214 | . 156 776 485 566 321 688 830 678 990 724 Spaces Moved 4430 | 1 103 324 289 464 267 344 702 577 741 618 Core 101 | . . . . . . . . . . 101 Treads 322 | . . 266 56 . . . . . . . Legs 986 | 1 103 58 233 464 127 . . . . . Wheels 2900 | . . . . . 140 344 702 577 741 396 Hover . | . . . . . . . . . . . Flight 121 | . . . . . . . . . . 121 Fastest Speed 36 | 120 120 120 120 120 85 85 100 100 101 36 Average Speed 112 | 120 120 153 134 120 101 98 100 105 121 96 Slowest Speed 260 | 120 120 260 190 120 120 100 100 115 135 200 Overloaded Moves . | . . . . . . . . . . . Propulsion Burnouts . | . . . . . . . . . . . Robots Hopped 1 | . . . . . . . . . . 1 Potential Cave-ins . | . . . . . . . . . . . Cave-ins Triggered . | . . . . . . . . . . . Exploration Rate (%) 37 | 1 26 35 72 91 68 28 21 17 28 27 Regions Visited 10 Branch Regions 3 Pre-discovered Areas . | . . . . . . . . . . . Known Exits Taken 3 | . . 1 . . . . . 1 1 . Unknown Exits Taken 7 | 1 1 . 1 1 1 1 1 . . . Scrap Searched 2 | . . . . . 2 . . . . . Spaces Dug 16 | . . . . . . . . 9 5 2 Terrain Destroyed 141 | . . . . . . 13 2 12 44 70 Melee 16 | . . . . . . . . 9 5 2 Projectile 46 | . . . . . . 13 2 3 12 16 AOE 79 | . . . . . . . . . 27 52 Terrain Rammed . | . . . . . . . . . . . Walls Destroyed . | . . . . . . . . . . . Machines Disabled . | . . . . . . . . . . . Actions | -11 -10 -9 -9 -9 -8 -8 -7 -6 -5 -4 --------- Run | Yrd Mat Mat Min Exi Min Mat Fac Fac Fac Fac Total 5359 | . 129 476 340 475 299 695 820 621 808 696 Wait 595 | . 10 68 20 . 3 334 100 18 26 16 Move 4418 | . 102 323 288 463 266 343 701 576 740 616 Hop 1 | . . . . . . . . . . 1 Pick Up 42 | . 5 3 3 4 4 3 2 4 6 8 Fast Attach 36 | . 3 6 1 . 3 4 . 4 5 10 Attach 31 | . . 8 1 1 1 2 3 1 4 10 Detach 3 | . . . . . . 3 . . . . Swap 17 | . . 4 1 1 1 1 . 1 4 4 Drop 50 | . 5 1 1 6 10 5 1 5 9 7 Fire 113 | . 4 62 25 . 11 . . . . 11 Melee 44 | . . . . . . . 5 12 14 13 Ram 1 | . . . . . . . 1 . . . Kick . | . . . . . . . . . . . Crush 1 | . . 1 . . . . . . . . Escape Stasis . | . . . . . . . . . . . Rewire 7 | . . . . . . . 7 . . . Trap . | . . . . . . . . . . . Miscellaneous . | . . . . . . . . . . . Route ------- -11/Scrapyard -10/Materials -9/Materials (discovered 4 exits: *Mat / *Min / *Sto x2) -9/Mines (discovered 3 exits: *Mat / *Exi / [*Zio]) -9/Exiles -8/Mines -8/Materials -7/Factory -6/Factory (discovered 2 exits: *Fac / *Low) -5/Factory -4/Factory History --------- Turn | Location | Event 1 | -11/Scrapyard | Discovered new exit (range 0) 1 | -11/Scrapyard | Entered Materials 129 | -10/Materials | Discovered new exit (range 10) 157 | -10/Materials | Entered another Materials area 157 | -9/Materials | Evolved 2 slots: Propulsion x2 228 | -9/Materials | Discovered new exit (range 15) 362 | -9/Materials | Build established: Mutant 531 | -9/Materials | Discovered new exit (range 5) 543 | -9/Materials | Identified exit to Mines 543 | -9/Materials | Identified exit to Storage 647 | -9/Materials | Lost 6 parts (3n1u2w) 933 | -9/Materials | Entered Mines 1123 | -9/Mines | Assembled infested the area 1128 | -9/Mines | Assisted by a Guerilla fighting off Assembled 1262 | -9/Mines | Build established: Scavenger-Mutant 1335 | -9/Mines | A Derelict revealed a hidden shortcut to a safe place 1361 | -9/Mines | Core integrity fell below 50% 1375 | -9/Mines | Discovered new exit (range 9) 1396 | -9/Mines | Deemed a non-threat by the Exiles lab entrance 1396 | -9/Mines | Discovered new exit (range 5) 1418 | -9/Mines | Entered Exiles 1418 | -9/Exiles | Accompanied by 2 allies 1448 | -9/Exiles | Led the pair of lost Derelicts to a safe place 1455 | -9/Exiles | Met 8R-AWN 1476 | -9/Exiles | Met EX-HEX 1511 | -9/Exiles | Met EX-BIN 1525 | -9/Exiles | Aligned with FarCom system 1526 | -9/Exiles | Given EX-Vault access code 1554 | -9/Exiles | Opened EX-Vault 1621 | -9/Exiles | Found AWS/Autocannon 1648 | -9/Exiles | Warned to stay clear of 0b10 Research branches 1678 | -9/Exiles | Met EX-DEC 1751 | -9/Exiles | Visited The Gauntlet 1973 | -9/Exiles | Discovered new exit (range 11) 1984 | -9/Exiles | Left Exiles lab with AWS/Autocannon 1984 | -9/Exiles | Entered Mines 2267 | -8/Mines | Discovered new exit (range 6) 2305 | -8/Mines | Entered Materials 2305 | -8/Materials | Evolved 2 slots: Utility x1, Weapon x1 2658 | -8/Materials | Build established: Scavenger-Tank 2977 | -8/Materials | Discovered new exit (range 16) 2993 | -8/Materials | Entered Factory 2993 | -7/Factory | Evolved 2 slots: Utility x1, Weapon x1 3004 | -7/Factory | Destroyed 8 combat bots 3813 | -7/Factory | Discovered new exit (range 8) 3823 | -7/Factory | Entered another Factory area 3823 | -6/Factory | Evolved 2 slots: Utility x2 4329 | -6/Factory | Discovered new exit (range 11) 4360 | -6/Factory | Identified exit to Lower Caves 4417 | -6/Factory | Discovered new exit (range 4) 4420 | -6/Factory | Identified exit to Factory 4501 | -6/Factory | Entered another Factory area 4501 | -5/Factory | Evolved 2 slots: Utility x2 4721 | -5/Factory | Found Prototype Processor 4721 | -5/Factory | Identified Exp. Targeting Computer 4876 | -5/Factory | Build established: Tank 5440 | -5/Factory | Garrison activated, responded to threat 5482 | -5/Factory | Discovered new exit (range 7) 5490 | -5/Factory | Identified exit to Factory 5491 | -5/Factory | Entered another Factory area 5491 | -4/Factory | Evolved 2 slots: Utility x2 5509 | -4/Factory | Destroyed 11 combat bots 5692 | -4/Factory | Spotted B-86 Titan 5702 | -4/Factory | Destroyed B-86 Titan 5786 | -4/Factory | Build established: Hacker-Tank 6036 | -4/Factory | AWS/Autocannon suddenly broke down 6083 | -4/Factory | Released all parts (6) 6088 | -4/Factory | Core integrity fell below 50% 6114 | -4/Factory | Lost 14 parts (1p2n7u4w) 6128 | -4/Factory | Core integrity fell below 20% 6215 | -4/Factory | Destroyed by S-27 Virus with Autogun Last Messages --------------- 06128_ Field Propulsion Drive destroyed. 06130_ K-01 Serf collects debris. 06131_ Field Propulsion Drive destroyed. 06131_ K-01 Serf collects debris. 06151_ Field Propulsion Drive destroyed. 06179_ Acquired Prototype Launcher. 06179_ Identified Neutron Missile Launcher. 06182_ Manufacturing Mainframe disabled. 06182_ S-27 Virus destroyed. 06182_ Manufacturing Mainframe disabled. 06182_ S-27 Virus destroyed. 06188_ Acquired Prototype Ballistic Gun. 06188_ Identified Enh. Coil Gun. 06188_ Faulty integration triggers meltdown. 06188_ Field Propulsion Drive damaged (-7). 06188_ Field Propulsion Drive destroyed. 06189_ Acquired 10 matter. 06191_ Neutrino Reactor explodes. 06198_ Dropped Neutron Missile Launcher. 06214_ 05OI71WV#WR=20WJJJWDQCMYE:/ Map ----- +----------------------------------------------------+ | +????????? | | ????? | | ??? | | ??? | | T#########/############### ?? | | ###?????? ????????????# ??? | | ??????? ??????????# # ??? | | ?????# ????????# # ??? | | ?????# #???????+ # ???? | | ?????# #???????# ###?? | | ?????# #???????# ### | | ?????# #???????# # | | ?????# #???????# = " # | | ?????# ] #???????# # | | ?????# #???????# % # | | ?????# #???????# " # | | ?????# ! #???????# # | | ?????##############???????# ]* "" # | | ??????????????????????????# # """" # | | ??????????????????????????# # """" # | | ??????????????????????????# # """" ? | | ??????????????????????????# # ? | | ??????????????????????########+############? | | ??????????????????????# #???? | | ??????????????????????# """"""""" #???? | | ??????????????????????# @ #???? | | ??????????????????????# """"""""" #???? | | ??????????????????????# #???? | | ??????????????????????# ! """"""""" !#???? | | ??????????????????????# #???? | | ??????????????????????# s""""""""" #???? | | ??????????????????????# s !#???? | | ??????????????????????##################???? | | | | | | | | | | | | | | | | | | | | | | | | | | | | | | | | | | | +----------------------------------------------------+ Best States ------------- Heat Dissipation 43 Energy Generation 19 Energy Capacity 315 Matter Stores 300 Matter Capacity 300 Sight Range 16 Terrain Scan Density 10 Armor Coverage 1650 Resistance: KI 30 Resistance: TH 20 Weapon Shielding 66 Evasion (%) 61 Targeting Accuracy 6 Target Analysis 5 Recoil Reduction 4 Defensive Hacking 24 Item Schematics ----------------- None Robot Schematics ------------------ None Fabricated ------------ Nothing Repaired ---------- Nothing Alien Tech Used ----------------- None Achievements -------------- None Challenges ------------ None Game ------ Seed TransmissionScrapoidLauncher Manual? 0 Play Time 01:27:22 Cumulative 109.4 hours Start 2025.08.17 @ 05:32:28 End 2025.08.17 @ 08:50:39 Sessions 1 Manual Loads 0 Difficulty Rogue Special Mode None Game No. 107 Rogue 107 Adventurer 0 Explorer 0 Win Type - Total 1 Types 1/0/0/0/0/0/0/0/0/0 Lore% 57 Gallery% 47 Achievement% 47 Wizard Run 0 Options --------- Layout 0 ASCII 0 Keyboard 0 Movement Mouse Keybinds 0 Fullscreen 2 Font 18/X11 Map View 76x50 Zoom Use 0% Tactical HUD 1 Map Filters NONE Filters NONE Steam 1 RUN: 391f8580-9c2f-482d-8f09-bd49c02d394b